[Event "Early-Titled-Tuesday-Blitz-September-05-2023"]
[Site "Chess.com"]
[Date "2023.09.05"]
[Round "9"]
[White "tk22h"]
[Black "KVAIDAN"]
[Result "1-0"]
[WhiteElo "2395"]
[BlackElo "2232"]
[TimeControl "180+1"]
[EndTime "9:40:58 PDT"]
[Termination "tk22h won by resignation"]

1. d4 {[%clk 0:02:51.5]} 1... e6 {[%clk 0:01:11.2]} 2. Nf3 {[%clk 0:02:50.3]}
2... f5 {[%clk 0:01:09.6]} 3. c4 {[%clk 0:02:50]} 3... Nf6 {[%clk 0:01:10]} 4.
g3 {[%clk 0:02:50.2]} 4... Be7 {[%clk 0:01:10.3]} 5. Bg2 {[%clk 0:02:49.9]} 5...
O-O {[%clk 0:01:11]} 6. O-O {[%clk 0:02:49.6]} 6... d6 {[%clk 0:01:11.6]} 7. Nc3
{[%clk 0:02:49.5]} 7... a5 {[%clk 0:01:11.9]} 8. Qd3 {[%clk 0:02:47.5]} 8... Nc6
{[%clk 0:01:11]} 9. e4 {[%clk 0:02:46]} 9... Nb4 {[%clk 0:01:09.3]} 10. Qe2
{[%clk 0:02:45.8]} 10... fxe4 {[%clk 0:01:09.9]} 11. Nxe4 {[%clk 0:02:45.7]}
11... Nxe4 {[%clk 0:01:10.6]} 12. Qxe4 {[%clk 0:02:46]} 12... e5 {[%clk
0:01:11.3]} 13. dxe5 {[%clk 0:02:45]} 13... Bf5 {[%clk 0:01:11.1]} 14. Qxb7
{[%clk 0:02:44.1]} 14... Rb8 {[%clk 0:01:10.9]} 15. Qa7 {[%clk 0:02:43.1]} 15...
Be4 {[%clk 0:01:05.9]} 16. Bd2 {[%clk 0:02:30.2]} 16... Bxf3 {[%clk 0:00:59.6]}
17. Bxf3 {[%clk 0:02:29.8]} 17... Rxf3 {[%clk 0:00:59.5]} 18. Qxa5 {[%clk
0:02:29.5]} 18... c5 {[%clk 0:00:50.4]} 19. Qxd8+ {[%clk 0:02:25.1]} 19... Rxd8
{[%clk 0:00:49.8]} 20. exd6 {[%clk 0:02:24.4]} 20... Rxd6 {[%clk 0:00:46.3]} 21.
Bxb4 {[%clk 0:02:23.2]} 21... cxb4 {[%clk 0:00:46.2]} 22. Rad1 {[%clk
0:02:20.5]} 22... Rxd1 {[%clk 0:00:42.9]} 23. Rxd1 {[%clk 0:02:19.8]} 23... Bc5
{[%clk 0:00:43.6]} 24. Rd2 {[%clk 0:02:17.8]} 24... Kf7 {[%clk 0:00:43.4]} 25.
Kg2 {[%clk 0:02:17.3]} 25... Rf5 {[%clk 0:00:42.3]} 26. f4 {[%clk 0:02:17.5]}
26... Rf6 {[%clk 0:00:41.9]} 27. Kf3 {[%clk 0:02:17.5]} 27... Ra6 {[%clk
0:00:40.9]} 28. b3 {[%clk 0:02:17.1]} 28... Ke6 {[%clk 0:00:38.9]} 29. Ke4
{[%clk 0:02:17]} 29... Rd6 {[%clk 0:00:38.6]} 30. Rxd6+ {[%clk 0:02:16.3]} 30...
Kxd6 {[%clk 0:00:36.1]} 31. g4 {[%clk 0:02:16.4]} 31... Bg1 {[%clk 0:00:34.3]}
32. h3 {[%clk 0:02:16.5]} 32... Bf2 {[%clk 0:00:33]} 33. Kf5 {[%clk 0:02:10.2]}
33... Bd4 {[%clk 0:00:29]} 34. Ke4 {[%clk 0:02:10.1]} 34... Bc3 {[%clk
0:00:27.9]} 35. h4 {[%clk 0:02:08.2]} 35... Be1 {[%clk 0:00:27]} 36. h5 {[%clk
0:02:08.3]} 36... h6 {[%clk 0:00:24]} 37. Kf5 {[%clk 0:02:07.6]} 37... Bd2
{[%clk 0:00:20.4]} 38. g5 {[%clk 0:02:07.6]} 38... hxg5 {[%clk 0:00:20.3]} 39.
fxg5 {[%clk 0:02:07.9]} 39... Ke7 {[%clk 0:00:20.3]} 40. Kg6 {[%clk 0:02:04.9]}
40... Kf8 {[%clk 0:00:19.3]} 41. h6 {[%clk 0:02:04.8]} 41... gxh6 {[%clk
0:00:19.8]} 42. gxh6 {[%clk 0:02:05.2]} 42... Kg8 {[%clk 0:00:20.5]} 43. h7+
{[%clk 0:02:03.6]} 43... Kh8 {[%clk 0:00:21]} 44. c5 {[%clk 0:02:03.6]} 44...
Be3 {[%clk 0:00:19.9]} 45. c6 {[%clk 0:02:03.6]} 45... Bb6 {[%clk 0:00:20.5]}
46. Kf7 {[%clk 0:02:02.4]} 46... Kxh7 {[%clk 0:00:20.6]} 47. Ke7 {[%clk
0:02:02.6]} 47... Kg6 {[%clk 0:00:21.2]} 48. Kd7 {[%clk 0:02:02.9]} 48... Kf5
{[%clk 0:00:21.8]} 49. c7 {[%clk 0:02:03.2]} 49... Bxc7 {[%clk 0:00:22.2]} 50.
Kxc7 {[%clk 0:02:03.6]} 50... Ke4 {[%clk 0:00:22.9]} 51. Kc6 {[%clk 0:02:03.8]}
51... Kd4 {[%clk 0:00:23.5]} 52. Kb5 {[%clk 0:02:03.4]} 52... Kc3 {[%clk
0:00:23.7]} 53. Ka4 {[%clk 0:02:03.7]} 53... Kb2 {[%clk 0:00:22.8]} 54. Kxb4
{[%clk 0:02:03.9]} 1-0

[Event "Early-Titled-Tuesday-Blitz-September-05-2023"]
[Site "Chess.com"]
[Date "2023.09.05"]
[Round "9"]
[White "FeketeBarika"]
[Black "isaak2009"]
[Result "1-0"]
[WhiteElo "2389"]
[BlackElo "2517"]
[TimeControl "180+1"]
[EndTime "9:41:05 PDT"]
[Termination "FeketeBarika won by resignation"]

1. Nf3 {[%clk 0:02:47.9]} 1... Nf6 {[%clk 0:02:58.1]} 2. g3 {[%clk 0:02:41]}
2... c5 {[%clk 0:02:56.1]} 3. Bg2 {[%clk 0:02:41.7]} 3... Nc6 {[%clk 0:02:55.4]}
4. c4 {[%clk 0:02:41]} 4... g6 {[%clk 0:02:54.9]} 5. Nc3 {[%clk 0:02:40.6]} 5...
Bg7 {[%clk 0:02:53.9]} 6. O-O {[%clk 0:02:40.5]} 6... d6 {[%clk 0:02:54.6]} 7.
d4 {[%clk 0:02:39]} 7... cxd4 {[%clk 0:02:54.4]} 8. Nxd4 {[%clk 0:02:38.4]} 8...
Bd7 {[%clk 0:02:55.3]} 9. Bg5 {[%clk 0:02:35.6]} 9... h6 {[%clk 0:02:52.6]} 10.
Bxf6 {[%clk 0:02:00.6]} 10... Bxf6 {[%clk 0:02:45.7]} 11. e3 {[%clk 0:01:44]}
11... h5 {[%clk 0:02:44.9]} 12. h4 {[%clk 0:01:41.4]} 12... O-O {[%clk
0:02:43.7]} 13. Ne4 {[%clk 0:01:36.8]} 13... Bg7 {[%clk 0:02:40.6]} 14. Rc1
{[%clk 0:01:24.1]} 14... Qb6 {[%clk 0:02:38]} 15. Nxc6 {[%clk 0:01:19.5]} 15...
bxc6 {[%clk 0:02:35]} 16. b3 {[%clk 0:01:18.2]} 16... c5 {[%clk 0:02:32.8]} 17.
Ng5 {[%clk 0:01:12.9]} 17... Bc6 {[%clk 0:02:27.1]} 18. f3 {[%clk 0:01:09.1]}
18... a5 {[%clk 0:02:25.7]} 19. a4 {[%clk 0:00:55.6]} 19... Rab8 {[%clk
0:02:24.5]} 20. Rb1 {[%clk 0:00:54.6]} 20... Qc7 {[%clk 0:02:19.6]} 21. Kh2
{[%clk 0:00:51.7]} 21... Rb7 {[%clk 0:02:17.2]} 22. Qd3 {[%clk 0:00:36.5]} 22...
Rfb8 {[%clk 0:02:08.9]} 23. Bh3 {[%clk 0:00:30.7]} 23... Bd7 {[%clk 0:02:07]}
24. Bg2 {[%clk 0:00:25.8]} 24... Rb4 {[%clk 0:02:04.6]} 25. f4 {[%clk
0:00:20.1]} 25... Qb6 {[%clk 0:02:02.1]} 26. Bd5 {[%clk 0:00:17.8]} 26... e6
{[%clk 0:02:01.8]} 27. Be4 {[%clk 0:00:14.9]} 27... Rxb3 {[%clk 0:01:55.4]} 28.
Rxb3 {[%clk 0:00:15.8]} 28... Qxb3 {[%clk 0:01:56]} 29. Qxd6 {[%clk 0:00:15.5]}
29... Qxc4 {[%clk 0:01:50.4]} 30. Qxb8+ {[%clk 0:00:15]} 30... Bf8 {[%clk
0:01:49]} 31. Bg2 {[%clk 0:00:13.9]} 31... Bc6 {[%clk 0:01:46.6]} 32. Bxc6
{[%clk 0:00:12.8]} 32... Qxf1 {[%clk 0:01:46.4]} 33. Qe8 {[%clk 0:00:10.4]} 1-0

[Event "Early-Titled-Tuesday-Blitz-September-05-2023"]
[Site "Chess.com"]
[Date "2023.09.05"]
[Round "9"]
[White "amylazy"]
[Black "NovozhilovSemen"]
[Result "0-1"]
[WhiteElo "2447"]
[BlackElo "2571"]
[TimeControl "180+1"]
[EndTime "9:41:07 PDT"]
[Termination "NovozhilovSemen won by resignation"]

1. d4 {[%clk 0:02:56.2]} 1... Nf6 {[%clk 0:02:59.2]} 2. Nf3 {[%clk 0:02:55.7]}
2... e6 {[%clk 0:02:57.8]} 3. e3 {[%clk 0:02:55.6]} 3... c5 {[%clk 0:02:57.1]}
4. Bd3 {[%clk 0:02:55.5]} 4... cxd4 {[%clk 0:02:56.1]} 5. exd4 {[%clk
0:02:55.1]} 5... b6 {[%clk 0:02:54.9]} 6. O-O {[%clk 0:02:55]} 6... Bb7 {[%clk
0:02:53.1]} 7. c4 {[%clk 0:02:55.4]} 7... d6 {[%clk 0:02:50.8]} 8. Nc3 {[%clk
0:02:54.9]} 8... Be7 {[%clk 0:02:50.1]} 9. Re1 {[%clk 0:02:41.8]} 9... O-O
{[%clk 0:02:48.8]} 10. d5 {[%clk 0:02:42.1]} 10... e5 {[%clk 0:02:44.9]} 11. b3
{[%clk 0:01:25.1]} 11... Nbd7 {[%clk 0:02:43.8]} 12. Bb2 {[%clk 0:01:25.1]}
12... h6 {[%clk 0:02:42.3]} 13. Rc1 {[%clk 0:01:24.3]} 13... Bc8 {[%clk
0:02:30.7]} 14. Bb1 {[%clk 0:01:22.9]} 14... Ne8 {[%clk 0:02:29.3]} 15. b4
{[%clk 0:01:14.3]} 15... f5 {[%clk 0:02:28.7]} 16. Nb5 {[%clk 0:00:58]} 16... a6
{[%clk 0:02:24]} 17. Na3 {[%clk 0:00:52.3]} 17... Kh7 {[%clk 0:02:20.6]} 18. c5
{[%clk 0:00:44.4]} 18... bxc5 {[%clk 0:02:16.9]} 19. bxc5 {[%clk 0:00:44.2]}
19... Nxc5 {[%clk 0:02:17.3]} 20. Rxc5 {[%clk 0:00:42.4]} 20... dxc5 {[%clk
0:02:16.4]} 21. Nxe5 {[%clk 0:00:43.3]} 21... Bb7 {[%clk 0:02:04.3]} 22. Nac4
{[%clk 0:00:35.4]} 22... Rb8 {[%clk 0:01:54.8]} 23. Qh5 {[%clk 0:00:27.3]} 23...
Qxd5 {[%clk 0:01:24.9]} 24. Bxf5+ {[%clk 0:00:26.6]} 24... Kg8 {[%clk
0:01:24.9]} 25. Be4 {[%clk 0:00:17.8]} 25... Qe6 {[%clk 0:01:20.1]} 26. Bxb7
{[%clk 0:00:06.8]} 26... Rxb7 {[%clk 0:01:21]} 27. Nf3 {[%clk 0:00:06.3]} 27...
Qxc4 {[%clk 0:01:19]} 28. Bxg7 {[%clk 0:00:03.5]} 28... Nxg7 {[%clk 0:01:17.9]}
0-1

[Event "Early-Titled-Tuesday-Blitz-September-05-2023"]
[Site "Chess.com"]
[Date "2023.09.05"]
[Round "9"]
[White "WilsonPalencia21"]
[Black "AlexPapasimakopoulos"]
[Result "0-1"]
[WhiteElo "2558"]
[BlackElo "2746"]
[TimeControl "180+1"]
[EndTime "9:41:12 PDT"]
[Termination "AlexPapasimakopoulos won by resignation"]

1. d4 {[%clk 0:03:00.9]} 1... d5 {[%clk 0:02:49.9]} 2. c4 {[%clk 0:02:57.7]}
2... e6 {[%clk 0:02:50.2]} 3. Nf3 {[%clk 0:02:57.2]} 3... a6 {[%clk 0:02:50.2]}
4. cxd5 {[%clk 0:02:56.5]} 4... exd5 {[%clk 0:02:49.9]} 5. Nc3 {[%clk
0:02:57.2]} 5... c6 {[%clk 0:02:50.2]} 6. Bg5 {[%clk 0:02:56.9]} 6... Be7 {[%clk
0:02:50.1]} 7. Bf4 {[%clk 0:02:55.9]} 7... Nf6 {[%clk 0:02:49]} 8. e3 {[%clk
0:02:55.6]} 8... O-O {[%clk 0:02:49.5]} 9. Bd3 {[%clk 0:02:53.8]} 9... Re8
{[%clk 0:02:48]} 10. h3 {[%clk 0:02:53.7]} 10... Nbd7 {[%clk 0:02:46.3]} 11. O-O
{[%clk 0:02:53.6]} 11... Nf8 {[%clk 0:02:46.5]} 12. Qc2 {[%clk 0:02:52.8]} 12...
Bd6 {[%clk 0:02:46.6]} 13. Bg5 {[%clk 0:02:44.5]} 13... h6 {[%clk 0:02:44.9]}
14. Bf4 {[%clk 0:02:44]} 14... Bxf4 {[%clk 0:02:38.6]} 15. exf4 {[%clk
0:02:44.9]} 15... Ne6 {[%clk 0:02:38.2]} 16. g3 {[%clk 0:02:44.4]} 16... Qb6
{[%clk 0:02:36.9]} 17. Na4 {[%clk 0:02:41.6]} 17... Qa7 {[%clk 0:02:29.4]} 18.
Rad1 {[%clk 0:02:39.7]} 18... b5 {[%clk 0:02:25.9]} 19. Nc5 {[%clk 0:02:31.9]}
19... Nxc5 {[%clk 0:02:21.8]} 20. dxc5 {[%clk 0:02:31.7]} 20... Bxh3 {[%clk
0:02:21.1]} 21. Rfe1 {[%clk 0:02:31.7]} 21... Bg4 {[%clk 0:02:20.8]} 22. Kg2
{[%clk 0:02:28.6]} 22... Bxf3+ {[%clk 0:02:16.3]} 23. Kxf3 {[%clk 0:02:28.3]}
23... g6 {[%clk 0:02:11.3]} 24. Re5 {[%clk 0:02:15.5]} 24... Rxe5 {[%clk
0:02:02.6]} 25. fxe5 {[%clk 0:02:15.1]} 25... Nd7 {[%clk 0:02:03.2]} 26. e6
{[%clk 0:02:12.2]} 26... Ne5+ {[%clk 0:02:01.4]} 27. Kg2 {[%clk 0:02:11.6]}
27... Nxd3 {[%clk 0:01:52.8]} 28. Qxd3 {[%clk 0:02:11.4]} 28... Qxc5 {[%clk
0:01:48.6]} 29. Re1 {[%clk 0:02:04.8]} 29... f5 {[%clk 0:01:39.4]} 30. Qd2
{[%clk 0:02:02]} 30... g5 {[%clk 0:01:29.3]} 31. Qd3 {[%clk 0:01:51.3]} 31... d4
{[%clk 0:01:28.8]} 32. g4 {[%clk 0:01:44.1]} 32... Rf8 {[%clk 0:01:15.2]} 33. e7
{[%clk 0:01:43]} 33... Re8 {[%clk 0:01:15.3]} 34. Qxf5 {[%clk 0:01:27.2]} 34...
Qxf5 {[%clk 0:01:11.1]} 35. gxf5 {[%clk 0:01:27]} 35... d3 {[%clk 0:01:09.7]}
36. f6 {[%clk 0:01:15.1]} 36... Kf7 {[%clk 0:01:06.6]} 37. Rh1 {[%clk
0:01:07.8]} 37... d2 {[%clk 0:00:58.1]} 38. Kf3 {[%clk 0:01:05.8]} 38... Kxf6
{[%clk 0:00:40.1]} 39. Rxh6+ {[%clk 0:01:04.6]} 39... Ke5 {[%clk 0:00:39.6]} 40.
Ke2 {[%clk 0:01:02.6]} 40... Rxe7 {[%clk 0:00:39.8]} 41. Rxc6 {[%clk 0:00:59.7]}
41... Kd5+ {[%clk 0:00:39.7]} 0-1

[Event "Early-Titled-Tuesday-Blitz-September-05-2023"]
[Site "Chess.com"]
[Date "2023.09.05"]
[Round "9"]
[White "IngOscarArdila"]
[Black "Lady_Nika"]
[Result "1-0"]
[WhiteElo "2411"]
[BlackElo "2460"]
[TimeControl "180+1"]
[EndTime "9:41:15 PDT"]
[Termination "IngOscarArdila won by resignation"]

1. d4 {[%clk 0:03:00.2]} 1... d5 {[%clk 0:02:59.6]} 2. c4 {[%clk 0:03:00.4]}
2... e6 {[%clk 0:02:59.2]} 3. Nc3 {[%clk 0:02:59.9]} 3... Nf6 {[%clk 0:02:59.3]}
4. Bg5 {[%clk 0:02:59.8]} 4... Be7 {[%clk 0:02:59.4]} 5. e3 {[%clk 0:02:59.6]}
5... O-O {[%clk 0:02:59.5]} 6. Nf3 {[%clk 0:02:59.8]} 6... c6 {[%clk 0:02:59.7]}
7. Bd3 {[%clk 0:02:59.3]} 7... dxc4 {[%clk 0:02:59.8]} 8. Bxc4 {[%clk
0:02:59.4]} 8... b5 {[%clk 0:03:00.2]} 9. Bd3 {[%clk 0:02:59]} 9... Bb7 {[%clk
0:03:00.7]} 10. O-O {[%clk 0:02:59]} 10... a6 {[%clk 0:03:00.7]} 11. Qe2 {[%clk
0:02:58.7]} 11... Nbd7 {[%clk 0:03:00.2]} 12. Rfc1 {[%clk 0:02:56.3]} 12... c5
{[%clk 0:02:59.9]} 13. a4 {[%clk 0:02:52.9]} 13... c4 {[%clk 0:02:59.6]} 14. Bb1
{[%clk 0:02:51.1]} 14... Nd5 {[%clk 0:02:54.5]} 15. Bxe7 {[%clk 0:02:46.2]}
15... Qxe7 {[%clk 0:02:54.3]} 16. axb5 {[%clk 0:02:40.8]} 16... Nxc3 {[%clk
0:02:53.3]} 17. bxc3 {[%clk 0:02:31.4]} 17... axb5 {[%clk 0:02:53.1]} 18. Rxa8
{[%clk 0:02:28.1]} 18... Rxa8 {[%clk 0:02:51.7]} 19. Qc2 {[%clk 0:02:27.6]}
19... f5 {[%clk 0:02:48.3]} 20. Qb2 {[%clk 0:01:48.6]} 20... Bc6 {[%clk
0:02:45.5]} 21. Re1 {[%clk 0:01:43.6]} 21... Nf6 {[%clk 0:02:41.9]} 22. Ne5
{[%clk 0:01:41.7]} 22... Be8 {[%clk 0:02:39.7]} 23. e4 {[%clk 0:01:39.8]} 23...
fxe4 {[%clk 0:02:39.4]} 24. Bxe4 {[%clk 0:01:39.7]} 24... Nxe4 {[%clk
0:02:38.7]} 25. Rxe4 {[%clk 0:01:39.8]} 25... Qa3 {[%clk 0:02:36.8]} 26. Qd2
{[%clk 0:01:05.6]} 26... Qb3 {[%clk 0:02:32.7]} 27. Re1 {[%clk 0:01:03.3]} 27...
Ra2 {[%clk 0:02:31]} 28. Qe3 {[%clk 0:01:02.5]} 28... Rc2 {[%clk 0:02:16.3]} 29.
Nf3 {[%clk 0:00:49.2]} 29... Bf7 {[%clk 0:02:07.2]} 30. Qe5 {[%clk 0:00:47.5]}
30... h6 {[%clk 0:02:02.6]} 31. Qb8+ {[%clk 0:00:43.5]} 31... Kh7 {[%clk
0:02:02.5]} 32. Qf8 {[%clk 0:00:43.4]} 32... Bg6 {[%clk 0:01:59.5]} 33. h4
{[%clk 0:00:40.6]} 33... Qxc3 {[%clk 0:01:56.9]} 34. Rxe6 {[%clk 0:00:39.8]}
34... Rc1+ {[%clk 0:01:47.2]} 35. Kh2 {[%clk 0:00:39.7]} 35... Qa1 {[%clk
0:01:40.2]} 36. Re7 {[%clk 0:00:36.1]} 36... Rh1+ {[%clk 0:01:13.8]} 37. Kg3
{[%clk 0:00:36.3]} 37... Rh3+ {[%clk 0:01:05.7]} 38. gxh3 {[%clk 0:00:36.1]} 1-0

[Event "Early-Titled-Tuesday-Blitz-September-05-2023"]
[Site "Chess.com"]
[Date "2023.09.05"]
[Round "9"]
[White "Chernov_Mikhail"]
[Black "CraiggoryC"]
[Result "1-0"]
[WhiteElo "2380"]
[BlackElo "2212"]
[TimeControl "180+1"]
[EndTime "9:41:26 PDT"]
[Termination "Chernov_Mikhail won on time"]

1. d4 {[%clk 0:02:45.6]} 1... e6 {[%clk 0:03:00.1]} 2. e4 {[%clk 0:02:45.1]}
2... d5 {[%clk 0:02:59.6]} 3. c4 {[%clk 0:02:45.8]} 3... dxe4 {[%clk 0:02:59.2]}
4. Nc3 {[%clk 0:02:46.7]} 4... Nf6 {[%clk 0:02:59.8]} 5. f3 {[%clk 0:02:47]}
5... c5 {[%clk 0:02:59.5]} 6. d5 {[%clk 0:02:47.3]} 6... exd5 {[%clk 0:02:59.1]}
7. cxd5 {[%clk 0:02:48.2]} 7... exf3 {[%clk 0:02:58.8]} 8. Nxf3 {[%clk
0:02:49.1]} 8... Bd6 {[%clk 0:02:59]} 9. Bb5+ {[%clk 0:02:49.8]} 9... Bd7 {[%clk
0:02:58.7]} 10. O-O {[%clk 0:02:50.7]} 10... O-O {[%clk 0:02:58.2]} 11. Bg5
{[%clk 0:02:51.2]} 11... h6 {[%clk 0:02:44.5]} 12. Bh4 {[%clk 0:02:51]} 12...
Re8 {[%clk 0:02:39.7]} 13. Bd3 {[%clk 0:02:39.6]} 13... Bg4 {[%clk 0:02:30.4]}
14. Ne4 {[%clk 0:02:37]} 14... Rxe4 {[%clk 0:01:41.3]} 15. Bxe4 {[%clk
0:02:36.1]} 15... g5 {[%clk 0:01:42]} 16. Qc2 {[%clk 0:02:05.6]} 16... gxh4
{[%clk 0:01:30]} 17. Nxh4 {[%clk 0:01:53.4]} 17... Na6 {[%clk 0:00:42.8]} 18.
Nf5 {[%clk 0:01:45.2]} 18... Nb4 {[%clk 0:00:36.9]} 19. Qb1 {[%clk 0:01:25]}
19... Bxf5 {[%clk 0:00:25]} 20. Bxf5 {[%clk 0:01:20.9]} 20... Nbxd5 {[%clk
0:00:22]} 21. Qd3 {[%clk 0:01:17.9]} 21... Nf4 {[%clk 0:00:10.4]} 22. Qg3+
{[%clk 0:01:05.6]} 22... Kf8 {[%clk 0:00:07.3]} 23. Qh4 {[%clk 0:00:58.4]} 23...
Qe7 {[%clk 0:00:05.1]} 24. Qxh6+ {[%clk 0:00:58.2]} 24... Ke8 {[%clk 0:00:04.8]}
25. Rae1 {[%clk 0:00:56.5]} 25... Ne2+ {[%clk 0:00:03.9]} 26. Kf2 {[%clk
0:00:50.4]} 1-0

[Event "Early-Titled-Tuesday-Blitz-September-05-2023"]
[Site "Chess.com"]
[Date "2023.09.05"]
[Round "9"]
[White "Parhamov"]
[Black "assezde36"]
[Result "1-0"]
[WhiteElo "2934"]
[BlackElo "2796"]
[TimeControl "180+1"]
[EndTime "9:41:27 PDT"]
[Termination "Parhamov won by resignation"]

1. d4 {[%clk 0:03:00.9]} 1... Nf6 {[%clk 0:02:59.9]} 2. c4 {[%clk 0:03:01.6]}
2... e6 {[%clk 0:03:00.6]} 3. Nc3 {[%clk 0:03:02.1]} 3... Bb4 {[%clk 0:03:00.8]}
4. e3 {[%clk 0:03:02.3]} 4... O-O {[%clk 0:03:00.8]} 5. Bd2 {[%clk 0:03:01.7]}
5... c5 {[%clk 0:02:54.8]} 6. a3 {[%clk 0:03:00.8]} 6... Bxc3 {[%clk 0:02:55.4]}
7. Bxc3 {[%clk 0:03:01.2]} 7... Ne4 {[%clk 0:02:55.9]} 8. Ne2 {[%clk 0:03:01.5]}
8... b6 {[%clk 0:02:55.5]} 9. d5 {[%clk 0:02:51.2]} 9... Ba6 {[%clk 0:02:49.1]}
10. Qd3 {[%clk 0:02:49.8]} 10... Nxc3 {[%clk 0:02:36.3]} 11. Nxc3 {[%clk
0:02:49.5]} 11... exd5 {[%clk 0:02:36.9]} 12. Qxd5 {[%clk 0:02:41.9]} 12... Nc6
{[%clk 0:02:37.1]} 13. Rd1 {[%clk 0:02:42.5]} 13... Qf6 {[%clk 0:02:34.8]} 14.
Be2 {[%clk 0:02:39]} 14... Rad8 {[%clk 0:02:30.3]} 15. O-O {[%clk 0:02:37.8]}
15... Na5 {[%clk 0:02:29.3]} 16. Rd2 {[%clk 0:02:10.8]} 16... Qe6 {[%clk
0:01:31.6]} 17. Nb5 {[%clk 0:02:09.5]} 17... Qg6 {[%clk 0:01:09.3]} 18. Nd6
{[%clk 0:02:02.1]} 18... Nc6 {[%clk 0:00:57.5]} 19. Rfd1 {[%clk 0:01:48]} 19...
Qf6 {[%clk 0:00:55.1]} 20. f4 {[%clk 0:01:29.4]} 20... g6 {[%clk 0:00:53.2]} 21.
Bf3 {[%clk 0:01:24.3]} 21... Qe7 {[%clk 0:00:27]} 22. Qd3 {[%clk 0:01:24]} 22...
Qf6 {[%clk 0:00:22.8]} 23. Qc2 {[%clk 0:01:06.4]} 23... Ne7 {[%clk 0:00:20.6]}
24. b4 {[%clk 0:01:04.4]} 24... Nc8 {[%clk 0:00:16.9]} 25. b5 {[%clk 0:00:59.3]}
25... Nxd6 {[%clk 0:00:14.8]} 26. Rxd6 {[%clk 0:00:59.8]} 26... Qe7 {[%clk
0:00:13.7]} 27. bxa6 {[%clk 0:01:00.2]} 27... Qxe3+ {[%clk 0:00:14]} 28. Qf2
{[%clk 0:01:00.4]} 28... Qxa3 {[%clk 0:00:14.3]} 29. f5 {[%clk 0:00:57.7]} 29...
Qxa6 {[%clk 0:00:11.8]} 30. Bd5 {[%clk 0:00:57.7]} 1-0

[Event "Early-Titled-Tuesday-Blitz-September-05-2023"]
[Site "Chess.com"]
[Date "2023.09.05"]
[Round "9"]
[White "Manukyan_Artak"]
[Black "onnoelgersma"]
[Result "1/2-1/2"]
[WhiteElo "2463"]
[BlackElo "2580"]
[TimeControl "180+1"]
[EndTime "9:41:41 PDT"]
[Termination "Game drawn by repetition"]

1. e4 {[%clk 0:02:58.6]} 1... e6 {[%clk 0:02:54.5]} 2. d4 {[%clk 0:02:56.1]}
2... d5 {[%clk 0:02:55]} 3. e5 {[%clk 0:02:54.6]} 3... c5 {[%clk 0:02:52.1]} 4.
c3 {[%clk 0:02:55.1]} 4... Qb6 {[%clk 0:02:51.4]} 5. Nf3 {[%clk 0:02:54]} 5...
Bd7 {[%clk 0:02:52]} 6. a3 {[%clk 0:02:52.1]} 6... c4 {[%clk 0:02:49.5]} 7. Nbd2
{[%clk 0:02:50.7]} 7... Nc6 {[%clk 0:02:49.6]} 8. b4 {[%clk 0:02:48.7]} 8...
cxb3 {[%clk 0:02:48.6]} 9. Nxb3 {[%clk 0:02:48.2]} 9... Na5 {[%clk 0:02:46.3]}
10. Nxa5 {[%clk 0:02:48.3]} 10... Qxa5 {[%clk 0:02:46.8]} 11. Bd2 {[%clk
0:02:49.1]} 11... Qc7 {[%clk 0:02:46.9]} 12. Bd3 {[%clk 0:02:46.3]} 12... Ne7
{[%clk 0:02:47.4]} 13. O-O {[%clk 0:02:45.7]} 13... Nc6 {[%clk 0:02:48]} 14. Qb1
{[%clk 0:02:36.2]} 14... Na5 {[%clk 0:02:44.1]} 15. h4 {[%clk 0:02:33.4]} 15...
h6 {[%clk 0:02:40.3]} 16. h5 {[%clk 0:02:33.3]} 16... Be7 {[%clk 0:02:40.4]} 17.
g4 {[%clk 0:02:32.8]} 17... b6 {[%clk 0:02:38.9]} 18. Kg2 {[%clk 0:02:30.2]}
18... Nc4 {[%clk 0:02:32.9]} 19. Bc1 {[%clk 0:02:28.8]} 19... Ba4 {[%clk
0:02:30.9]} 20. Nd2 {[%clk 0:02:26.1]} 20... Rc8 {[%clk 0:02:28.8]} 21. Nxc4
{[%clk 0:02:21.1]} 21... dxc4 {[%clk 0:02:26.9]} 22. Be4 {[%clk 0:02:21.3]}
22... Bc6 {[%clk 0:02:25.4]} 23. f3 {[%clk 0:02:18.9]} 23... O-O {[%clk
0:02:13.6]} 24. a4 {[%clk 0:02:18.1]} 24... Rb8 {[%clk 0:02:11]} 25. Bxc6 {[%clk
0:02:11.6]} 25... Qxc6 {[%clk 0:02:10.4]} 26. Qe4 {[%clk 0:02:12.5]} 26... Rfc8
{[%clk 0:02:09.8]} 27. Qxc6 {[%clk 0:02:12.1]} 27... Rxc6 {[%clk 0:02:10.7]} 28.
Ba3 {[%clk 0:02:11.9]} 28... Kf8 {[%clk 0:02:10.1]} 29. Rfb1 {[%clk 0:02:08]}
29... a6 {[%clk 0:02:00.6]} 30. f4 {[%clk 0:02:06.4]} 30... Bxa3 {[%clk
0:01:54.2]} 31. Rxa3 {[%clk 0:02:06]} 31... Ke7 {[%clk 0:01:53.5]} 32. Kf3
{[%clk 0:02:03.1]} 32... f6 {[%clk 0:01:52.4]} 33. Ke4 {[%clk 0:02:01]} 33...
Rcc8 {[%clk 0:01:42.2]} 34. f5 {[%clk 0:01:53.5]} 34... fxe5 {[%clk 0:01:39.9]}
35. dxe5 {[%clk 0:01:52]} 35... Rd8 {[%clk 0:01:35.1]} 36. Ra2 {[%clk 0:01:16]}
36... Rd3 {[%clk 0:01:28]} 37. Rab2 {[%clk 0:01:15.4]} 37... Rg3 {[%clk
0:00:56.9]} 38. Kf4 {[%clk 0:01:11]} 38... Rxc3 {[%clk 0:00:37.9]} 39. Rxb6
{[%clk 0:01:09.4]} 39... Rxb6 {[%clk 0:00:37]} 40. Rxb6 {[%clk 0:01:10.3]} 40...
exf5 {[%clk 0:00:37.1]} 41. gxf5 {[%clk 0:01:08.7]} 41... Rc1 {[%clk 0:00:35.2]}
42. Rb7+ {[%clk 0:00:57.6]} 42... Kf8 {[%clk 0:00:35.6]} 43. Rb8+ {[%clk
0:00:52.4]} 43... Ke7 {[%clk 0:00:33.6]} 44. Rb7+ {[%clk 0:00:52]} 44... Kf8
{[%clk 0:00:33.5]} 45. Rb8+ {[%clk 0:00:50.9]} 45... Ke7 {[%clk 0:00:27.7]} 46.
Rb7+ {[%clk 0:00:51.2]} 1/2-1/2